fUST/lending_fUST_20250302
["ID","MTS","AMOUNT","RATE_DAILY","PERIOD"]
[354991139,1740858640713,-500.0,0.00024657,2]
[354991140,1740858640722,-500.0,0.00024657,2]
[354991141,1740858640732,-500.0,0.00024657,2]
[354991142,1740858640742,-1637.74,0.00024657,2]
[354991143,1740858640752,-500.0,0.00024657,2]
[354991144,1740858640762,-445.23001802,0.00024657,2]
[354991145,1740858640771,-500.0,0.00024657,2]
[354991146,1740858640780,-1631.75,0.00024657,2]
[354991147,1740858640790,-614.9,0.00024657,2]
[354991148,1740858640800,-500.0,0.00024657,2]
[354991149,1740858640809,-3677.1,0.00024657,2]
[354991150,1740858640818,-536.86769473,0.00024657,2]
[354991151,1740858640828,-500.0,0.00024657,2]
[354991152,1740858640838,-500.0,0.00024657,2]
[354991153,1740858640847,-500.0,0.00024657,2]
[354991154,1740858640857,-3517.56,0.00024657,2]
[354991155,1740858640866,-1467.3,0.00024657,2]
[354991156,1740858640876,-500.0,0.00024657,2]
[354991157,1740858640886,-500.0,0.00024657,2]
[354991158,1740858640896,-1086.1,0.00024657,2]
[354991159,1740858640905,-500.0,0.00024657,2]
[354991160,1740858640915,-500.0,0.00024658,2]
[354991161,1740858640932,-500.0,0.00024658,2]
[354991162,1740858640941,-500.0,0.00024658,2]
[354991163,1740858640951,-500.0,0.00024673,2]
[354991164,1740858640960,-317.98178114,0.00024673,2]
[354991165,1740858640969,-506.98847253,0.00024673,2]
[354991166,1740858640979,-500.0,0.00024673,2]
[354991167,1740858640989,-500.0,0.00024673,2]
[354991168,1740858640998,-500.0,0.00024673,2]
[354991169,1740858641007,-399.44104347,0.00024673,2]
[354991170,1740858641016,-500.0,0.00024673,2]
[354991171,1740858641025,-500.0,0.00024673,2]
[354991172,1740858641035,-500.0,0.00024673,2]
[354991173,1740858641044,-500.0,0.00024673,2]
[354991174,1740858641053,-500.0,0.00024673,2]
[354991175,1740858641063,-500.0,0.00024673,2]
[354991176,1740858641072,-500.0,0.00024673,2]
[354991177,1740858641081,-151.0,0.00024679,2]
[354991178,1740858641090,-500.0,0.00024679,2]
[354991179,1740858641099,-550.0,0.00024679,2]
[354991180,1740858641110,-605.0,0.00024679,2]
[354991181,1740858641119,-665.5,0.00024679,2]
[354991182,1740858641130,-732.05,0.00024679,2]
[354991183,1740858641139,-805.255,0.00024679,2]
[354991184,1740858641148,-885.7805,0.00024679,2]
[354991185,1740858641157,-1000.0,0.00024679,2]
[354991186,1740858641167,-287.176045,0.00024679,2]
[354991187,1740858641176,-1470.42151511,0.00024684,2]
[354991188,1740858641185,-268.94309264,0.00024687,2]
[354991189,1740858641194,-500.0,0.00024693,2]
[354991190,1740858641204,-13682.53,0.00024693,2]
[354991191,1740858641213,-1234.23,0.00024693,2]
[354991192,1740858641223,-500.0,0.00024693,2]
[354991193,1740858641233,-222000.0,0.00024694,2]
[354991194,1740858641243,-447.32,0.000247,7]
[354991195,1740858641252,-500.0,0.00024773,2]
[354991196,1740858641262,-500.0,0.00024773,2]
[354991197,1740858641272,-500.0,0.00024773,2]
[354991198,1740858641282,-500.0,0.00024773,2]
[354991199,1740858641291,-500.0,0.00024773,2]
[354991200,1740858641302,-500.0,0.00024773,2]
[354991201,1740858641312,-500.0,0.00024773,2]
[354991202,1740858641321,-500.0,0.00024773,2]
[354991203,1740858641330,-268.94309264,0.0002478,2]
[354991204,1740858641340,-500.0,0.00024788,2]
[354991205,1740858641349,-500.0,0.00024788,2]
[354991206,1740858641359,-500.0,0.00024788,2]
[354991207,1740858641369,-500.0,0.00024793,2]
[354991208,1740858641378,-687.34,0.00024793,2]
[354991209,1740858641388,-500.0,0.00024793,2]
[354991210,1740858641398,-500.0,0.00024793,2]
[354991211,1740858641407,-292.98527967,0.00024793,2]
[354991212,1740858641417,-500.0,0.00024793,2]
[354991213,1740858641426,-500.0,0.00024793,2]
[354991214,1740858641436,-500.0,0.00024793,2]
[354991215,1740858641445,-500.0,0.00024793,2]
[354991216,1740858641454,-500.0,0.00024793,2]
[354991217,1740858641464,-500.0,0.00024793,2]
[354991218,1740858641473,-500.0,0.00024793,2]
[354991219,1740858641483,-500.0,0.00024793,2]
[354991220,1740858641493,-500.0,0.00024793,2]
[354991221,1740858641503,-500.0,0.00024793,2]
[354991222,1740858641512,-500.0,0.00024793,2]
[354991223,1740858641521,-500.0,0.00024793,2]
[354991224,1740858641531,-805.18,0.00024793,2]
[354991225,1740858641541,-500.0,0.00024793,2]
[354991226,1740858641551,-500.0,0.00024793,2]
[354991227,1740858641562,-500.0,0.00024793,2]
[354991228,1740858641571,-500.0,0.00024793,2]
[354991229,1740858641581,-500.0,0.00024793,2]
[354991230,1740858641591,-500.0,0.00024793,2]
[354991231,1740858641600,-500.0,0.00024793,2]
[354991232,1740858641610,-511.17,0.00024793,2]
[354991233,1740858641620,-608.93694024,0.00024793,2]
[354991234,1740858641630,-500.0,0.00024793,2]
[354991235,1740858641639,-500.0,0.00024793,2]
[354991236,1740858641649,-500.0,0.00024793,2]
[354991237,1740858641659,-500.0,0.00024793,2]
[354991238,1740858641668,-500.0,0.00024793,2]
[354991239,1740858641678,-918.32,0.00024793,2]
[354991240,1740858641687,-500.0,0.00024793,2]
[354991241,1740858641697,-500.0,0.00024793,2]
[354991242,1740858641707,-500.0,0.00024793,2]
[354991243,1740858641716,-500.0,0.00024793,2]
[354991244,1740858641726,-500.0,0.00024793,2]
[354991245,1740858641736,-500.0,0.00024793,2]
[354991246,1740858641747,-500.0,0.00024793,2]
[354991247,1740858641757,-500.0,0.00024793,2]
[354991248,1740858641767,-500.0,0.00024793,2]
[354991249,1740858641777,-500.0,0.00024793,2]
[354991250,1740858641787,-500.0,0.00024793,2]
[354991251,1740858641796,-500.0,0.00024793,2]
[354991252,1740858641806,-500.0,0.00024793,2]
[354991253,1740858641815,-500.0,0.00024793,2]
[354991254,1740858641825,-500.0,0.00024793,2]
[354991255,1740858641835,-500.0,0.00024793,2]
[354991256,1740858641844,-500.0,0.00024793,2]
[354991257,1740858641854,-500.0,0.00024793,2]
[354991258,1740858641863,-500.0,0.00024793,2]
[354991259,1740858641873,-500.0,0.00024793,2]
[354991260,1740858641883,-500.0,0.00024793,2]
[354991261,1740858641892,-500.0,0.00024793,2]
[354991262,1740858641901,-500.0,0.00024793,2]
[354991263,1740858641910,-500.0,0.00024793,2]
[354991264,1740858641920,-500.0,0.00024793,2]
[354991265,1740858641929,-500.0,0.00024793,2]
[354991266,1740858641939,-500.0,0.00024793,2]
[354991267,1740858641948,-500.0,0.00024793,2]
[354991268,1740858641958,-500.0,0.00024793,2]
[354991269,1740858641968,-500.0,0.00024793,2]
[354991270,1740858641978,-500.0,0.00024793,2]
[354991271,1740858641990,-469.46315389,0.00024793,2]
[354991272,1740858642000,-541.24,0.00024793,2]
[354991273,1740858642009,-216.40643473,0.00024793,2]
[354991274,1740858642019,-695.72,0.00024793,2]
[354991275,1740858642029,-500.0,0.00024793,2]
[354991276,1740858642038,-500.0,0.00024793,2]
[354991277,1740858642048,-500.0,0.00024793,2]
[354991278,1740858642057,-500.0,0.00024793,2]
[354991279,1740858642067,-500.0,0.00024793,2]
[354991280,1740858642077,-947.0,0.00024793,2]
[354991281,1740858642086,-500.0,0.00024793,2]
[354991282,1740858642096,-500.0,0.00024793,2]
[354991283,1740858642106,-500.0,0.00024793,2]
[354991284,1740858642116,-500.0,0.00024793,2]
[354991285,1740858642125,-500.0,0.00024793,2]
[354991286,1740858642135,-588.4,0.00024793,2]
[354991287,1740858642352,-851.85,0.00024793,2]
[354991288,1740858642363,-500.0,0.00024793,2]
[354991289,1740858642372,-872.39,0.00024793,2]
[354991290,1740858642382,-294.04671289,0.00024793,2]
[354991291,1740858642392,-503.38725626,0.00024793,2]
[354991292,1740858642402,-500.0,0.00024793,2]
[354991293,1740858642411,-500.0,0.00024793,2]
[354991294,1740858642421,-435.64789553,0.00024793,2]
[354991295,1740858642430,-1385.04,0.00024793,2]
[354991296,1740858642440,-500.0,0.00024793,2]
[354991297,1740858642450,-500.0,0.00024793,2]
[354991298,1740858642460,-500.0,0.00024793,2]
[354991299,1740858642470,-500.0,0.00024793,2]
[354991300,1740858642480,-500.0,0.00024793,2]
[354991301,1740858642492,-1229.21,0.00024793,2]
[354991302,1740858642502,-313.07920656,0.00024793,2]
[354991303,1740858642512,-500.0,0.00024793,2]
[354991304,1740858642521,-494.63397292,0.00024793,2]
[354991305,1740858642531,-814.39,0.00024793,2]
[354991306,1740858642540,-500.0,0.00024793,2]
[354991307,1740858642553,-1172.15,0.00024793,2]
[354991308,1740858642563,-500.0,0.00024793,2]
[354991309,1740858642572,-508.53943739,0.00024793,2]
[354991310,1740858642582,-500.0,0.00024793,2]
[354991311,1740858642592,-587.83,0.00024793,2]
[354991312,1740858642602,-500.0,0.00024793,2]
[354991313,1740858642611,-500.0,0.00024793,2]
[354991314,1740858642621,-500.0,0.00024793,2]
[354991315,1740858642631,-500.0,0.00024793,2]
[354991316,1740858642640,-901.51,0.00024793,2]
[354991317,1740858642650,-500.0,0.00024793,2]
[354991318,1740858642659,-500.0,0.00024793,2]
[354991319,1740858642669,-500.0,0.00024793,2]
[354991320,1740858642679,-500.0,0.00024793,2]
[354991321,1740858642688,-536.81,0.00024793,2]
[354991322,1740858642697,-500.0,0.00024793,2]
[354991323,1740858642707,-500.0,0.00024793,2]
[354991324,1740858642716,-500.0,0.00024793,2]
[354991325,1740858642725,-500.0,0.00024793,2]
[354991326,1740858642735,-963.78,0.00024793,2]
[354991327,1740858642747,-975.4,0.00024793,2]
[354991328,1740858642756,-500.0,0.00024793,2]
[354991329,1740858642766,-500.0,0.00024793,2]
[354991330,1740858642776,-500.0,0.00024793,2]
[354991331,1740858642786,-500.0,0.00024793,2]
[354991332,1740858642797,-500.0,0.00024793,2]
[354991333,1740858642806,-500.0,0.00024793,2]
[354991334,1740858642816,-500.0,0.00024793,2]
[354991335,1740858642825,-500.0,0.00024793,2]
[354991336,1740858642835,-500.0,0.00024793,2]
[354991337,1740858642844,-500.0,0.00024793,2]
[354991338,1740858642853,-2108.74,0.00024793,2]
[354991339,1740858642863,-500.0,0.00024793,2]
[354991340,1740858642872,-500.0,0.00024793,2]
[354991341,1740858642882,-500.0,0.00024793,2]
[354991342,1740858642892,-1421.5,0.00024793,2]
[354991343,1740858642901,-500.0,0.00024793,2]
[354991344,1740858642912,-1612.04,0.00024793,2]
[354991345,1740858642921,-500.0,0.00024793,2]
[354991346,1740858642930,-500.0,0.00024793,2]
[354991347,1740858642940,-651.14,0.00024793,2]
[354991348,1740858642950,-500.0,0.00024793,2]
[354991349,1740858642960,-500.0,0.00024793,2]
[354991350,1740858642969,-500.0,0.00024793,2]
[354991351,1740858642979,-500.0,0.00024793,2]
[354991352,1740858642989,-500.0,0.00024793,2]
[354991353,1740858642999,-500.0,0.00024793,2]
[354991354,1740858643009,-395.2626657,0.00024793,2]
[354991355,1740858643019,-769.69,0.00024793,2]
[354991356,1740858643028,-500.0,0.00024793,2]
[354991357,1740858643038,-500.0,0.00024793,2]
[354991358,1740858643048,-500.0,0.00024793,2]
[354991359,1740858643057,-500.0,0.00024793,2]
[354991360,1740858643067,-500.0,0.00024793,2]
[354991361,1740858643078,-500.0,0.00024793,2]
[354991362,1740858643088,-1982.33,0.00024793,2]
[354991363,1740858643098,-549.29,0.00024793,2]
[354991364,1740858643107,-500.0,0.00024793,2]
[354991366,1740858643117,-500.0,0.00024793,2]
[354991367,1740858643126,-500.0,0.00024793,2]
[354991369,1740858643135,-500.0,0.00024793,2]
[354991371,1740858643145,-500.0,0.00024793,2]
[354991373,1740858643154,-500.0,0.00024793,2]
[354991375,1740858643163,-500.0,0.00024793,2]
[354991376,1740858643172,-500.0,0.00024793,2]
[354991377,1740858643184,-500.0,0.00024793,2]
[354991378,1740858643194,-500.0,0.00024793,2]
[354991379,1740858643203,-666.88,0.00024793,2]
[354991380,1740858643213,-500.0,0.00024793,2]
[354991381,1740858643224,-641.19,0.00024793,2]
[354991382,1740858643234,-500.0,0.00024793,2]
[354991383,1740858643244,-500.0,0.00024793,2]
[354991384,1740858643254,-151.89046714,0.00024793,2]
[354991386,1740858643263,-500.0,0.00024793,2]
[354991388,1740858643273,-500.0,0.00024793,2]
[354991390,1740858643282,-708.0,0.00024793,2]
[354991392,1740858643291,-500.0,0.00024793,2]
[354991394,1740858643300,-500.0,0.00024793,2]
[354991396,1740858643309,-572.68,0.00024793,2]
[354991397,1740858643319,-521.68,0.00024793,2]
[354991398,1740858643328,-500.0,0.00024793,2]
[354991399,1740858643338,-617.2,0.00024793,2]
[354991400,1740858643348,-500.0,0.00024793,2]
[354991402,1740858643358,-803.1,0.00024793,2]
[354991403,1740858643367,-1057.58,0.00024793,2]
[354991404,1740858643377,-500.0,0.00024793,2]
[354991405,1740858643387,-500.0,0.00024793,2]
[354991406,1740858643397,-500.0,0.00024793,2]
[354991407,1740858643407,-1355.33,0.00024793,2]
[354991408,1740858643417,-500.0,0.00024793,2]
[354991409,1740858643427,-500.0,0.00024793,2]
[354991410,1740858643437,-500.0,0.00024793,2]
[354991411,1740858643447,-500.0,0.00024793,2]
[354991412,1740858643457,-500.0,0.00024793,2]
[354991413,1740858643467,-500.0,0.00024793,2]
[354991414,1740858643477,-410.16438589,0.00024793,2]
[354991415,1740858643486,-500.0,0.00024793,2]
[354991416,1740858643497,-500.0,0.00024793,2]
[354991417,1740858643507,-3489.02,0.00024793,2]
[354991418,1740858643516,-500.0,0.00024793,2]
[354991419,1740858643527,-784.69,0.00024793,2]
[354991420,1740858643536,-500.0,0.00024793,2]
[354991421,1740858643546,-500.0,0.00024793,2]
[354991422,1740858643556,-976.41,0.00024793,2]
[354991423,1740858643566,-512.51198397,0.00024793,2]
[354991424,1740858643575,-500.0,0.00024793,2]
[354991425,1740858643585,-500.0,0.00024793,2]
[354991426,1740858643594,-512.16,0.00024793,2]
[354991427,1740858643604,-500.0,0.00024793,2]
[354991428,1740858643614,-500.0,0.00024793,2]
[354991429,1740858643624,-500.0,0.00024793,2]
[354991430,1740858643634,-500.0,0.00024793,2]
[354991431,1740858643643,-500.0,0.00024793,2]
[354991432,1740858643653,-500.0,0.00024793,2]
[354991433,1740858643663,-500.0,0.00024793,2]
[354991434,1740858643672,-500.0,0.00024793,2]
[354991435,1740858643682,-500.0,0.00024793,2]
[354991436,1740858643691,-500.0,0.00024793,2]
[354991437,1740858643701,-500.0,0.00024793,2]
[354991438,1740858643710,-940.17,0.00024793,2]
[354991439,1740858643720,-1131.28,0.00024793,2]
[354991440,1740858643729,-500.0,0.00024793,2]
[354991441,1740858643740,-500.0,0.00024795,2]
[354991442,1740858643750,-500.0,0.00024796,2]
[354991443,1740858643760,-500.0,0.00024796,2]
[354991444,1740858643769,-234.16,0.00024796,2]
[354991445,1740858643779,-248.27052954,0.00024797,2]
[354991446,1740858643788,-500.0,0.00024797,2]
[354991447,1740858643798,-500.0,0.00024797,2]
[354991448,1740858643808,-500.0,0.00024797,2]
[354991449,1740858643818,-500.0,0.00024797,2]
[354991450,1740858643827,-623.5975962,0.00024797,2]
[354991451,1740858643837,-558.2776123,0.00024797,2]
[354991452,1740858643847,-500.0,0.00024797,2]
[354991453,1740858643856,-460.40740218,0.00024797,2]
[354991454,1740858643866,-501.38460616,0.00024797,2]
[354991455,1740858643875,-500.0,0.00024797,2]
[354991456,1740858643885,-220.04247511,0.00024797,2]
[354991457,1740858643894,-586.15075589,0.00024797,2]
[354991458,1740858643903,-505.40828293,0.00024797,2]
[354991459,1740858643913,-284.45236407,0.00024797,2]
[354991460,1740858643922,-500.0,0.00024797,2]
[354991461,1740858643932,-500.0,0.00024797,2]
[354991462,1740858643941,-500.0,0.00024797,2]
[354991463,1740858643950,-500.0,0.00024797,2]
[354991464,1740858643960,-500.0,0.00024797,2]
[354991465,1740858643970,-500.0,0.00024797,2]
[354991466,1740858643979,-500.0,0.00024797,2]
[354991467,1740858643988,-500.0,0.00024797,2]
[354991468,1740858643998,-1001.65,0.00024797,2]
[354991469,1740858644008,-500.0,0.00024797,2]
[354991470,1740858644018,-500.0,0.00024797,2]
[354991471,1740858644027,-500.0,0.00024797,2]
[354991472,1740858644036,-1940.07,0.00024797,2]
[354991473,1740858644046,-1053.94,0.00024797,2]
[354991474,1740858644055,-1710.68019105,0.00024862,2]
[354991475,1740858644065,-268.94309264,0.00024874,2]
[354991476,1740858644074,-151.0,0.000249,8]
[354991477,1740858644084,-151.0,0.000249,10]
[354991478,1740858644094,-500.0,0.00024931,2]
[354991479,1740858644103,-500.0,0.00024931,2]
[354991480,1740858644112,-500.0,0.00024931,2]
[354991481,1740858644122,-500.0,0.00024931,2]
[354991482,1740858644131,-1356.93,0.00024931,2]
[354991483,1740858644141,-604.9,0.00024931,2]
[354991484,1740858644150,-500.0,0.00024931,2]
[354991485,1740858644159,-500.0,0.00024931,2]
[354991486,1740858644169,-1229.49,0.00024931,2]
[354991487,1740858644179,-500.0,0.00024931,2]
[354991488,1740858644188,-500.0,0.00024931,2]
[354991489,1740858644198,-500.0,0.00024931,2]
[354991490,1740858644207,-1294.44,0.00024931,2]
[354991491,1740858644217,-859.51,0.00024931,2]
[354991492,1740858644229,-500.0,0.00024931,2]
[354991493,1740858644238,-875.13,0.00024931,2]
[354991494,1740858644248,-500.0,0.00024931,2]
[354991495,1740858644257,-814.68,0.00024931,2]
[354991496,1740858644267,-949.73,0.00024931,2]
[354991497,1740858644276,-1425.19,0.00024931,2]
[354991498,1740858644285,-872.86,0.00024931,2]
[354991499,1740858644295,-511.33,0.00024931,2]
[354991500,1740858644304,-500.0,0.00024931,2]
[354991501,1740858644313,-681.95,0.00024931,2]
[354991502,1740858644323,-825.78,0.00024931,2]
[354991503,1740858644333,-500.0,0.00024931,2]
[354991504,1740858644342,-500.0,0.00024931,2]
[354991505,1740858644351,-500.0,0.00024931,2]
[354991506,1740858644360,-800.67,0.00024931,2]
[354991507,1740858644370,-500.0,0.00024931,2]
[354991508,1740858644379,-759.89,0.00024931,2]
[354991509,1740858644390,-500.0,0.00024931,2]
[354991510,1740858644400,-1116.87,0.00024931,2]
[354991511,1740858644409,-500.0,0.00024931,2]
[354991512,1740858644418,-500.0,0.00024931,2]
[354991513,1740858644428,-601.24,0.00024931,2]
[354991514,1740858644438,-1481.3,0.00024931,2]
[354991515,1740858644447,-500.0,0.00024931,2]
[354991516,1740858644457,-500.0,0.00024931,2]
[354991517,1740858644467,-500.0,0.00024931,2]
[354991518,1740858644476,-500.0,0.00024931,2]
[354991519,1740858644486,-540.63,0.00024931,2]
[354991520,1740858644496,-500.0,0.00024931,2]
[354991521,1740858644506,-500.0,0.00024931,2]
[354991522,1740858644515,-802.35,0.00024931,2]
[354991523,1740858644525,-268.19323666,0.00024931,2]
[354991524,1740858644535,-1400.57,0.00024931,2]
[354991525,1740858644544,-500.0,0.00024931,2]
[354991526,1740858644554,-500.0,0.00024931,2]
[354991527,1740858644563,-500.0,0.00024931,2]
[354991528,1740858644573,-1012.06,0.00024931,2]
[354991529,1740858644582,-644.02,0.00024931,2]
[354991530,1740858644592,-500.0,0.00024931,2]
[354991531,1740858644603,-500.0,0.00024931,2]
[354991532,1740858644613,-500.0,0.00024931,2]
[354991533,1740858644623,-559.57,0.00024931,2]
[354991534,1740858644633,-500.0,0.00024931,2]
[354991535,1740858644643,-500.0,0.00024931,2]
[354991536,1740858644653,-465.80094179,0.00024931,2]
[354991537,1740858644663,-844.97,0.00024931,2]
[354991538,1740858644672,-500.0,0.00024931,2]
[354991539,1740858644682,-500.0,0.00024931,2]
[354991540,1740858644691,-500.0,0.00024931,2]
[354991541,1740858644702,-574.28,0.00024931,2]
[354991542,1740858644711,-500.0,0.00024931,2]
[354991543,1740858644721,-500.0,0.00024931,2]
[354991544,1740858644733,-761.24,0.00024931,2]
[354991545,1740858644744,-500.0,0.00024931,2]
[354991546,1740858644754,-582.36,0.00024931,2]
[354991547,1740858644763,-500.0,0.00024931,2]
[354991548,1740858644773,-500.0,0.00024931,2]
[354991549,1740858644783,-1023.73,0.00024931,2]
[354991550,1740858644793,-670.61,0.00024931,2]
[354991551,1740858644802,-12925.59,0.00024931,2]
[354991552,1740858644812,-500.0,0.00024931,2]
[354991553,1740858644821,-500.0,0.00024931,2]
[354991554,1740858644831,-585.93,0.00024931,2]
[354991555,1740858644840,-24231.35,0.00024931,2]
[354991556,1740858644850,-500.0,0.00024931,2]
[354991557,1740858644859,-500.0,0.00024931,2]
[354991558,1740858644868,-500.0,0.00024931,2]
[354991559,1740858644878,-500.0,0.00024931,2]
[354991560,1740858644887,-726.37,0.00024931,2]
[354991561,1740858644897,-1094.43,0.00024931,2]
[354991562,1740858644906,-500.0,0.00024931,2]
[354991563,1740858644915,-500.0,0.00024931,2]
[354991564,1740858644925,-5410.94,0.00024931,2]
[354991565,1740858644936,-364.97873975,0.00024931,2]
[354991566,1740858644950,-500.0,0.00024931,2]
[354991567,1740858644964,-1790.44,0.00024931,2]
[354991568,1740858644977,-500.0,0.00024931,2]
[354991569,1740858644990,-657.95,0.00024931,2]
[354991570,1740858645002,-893.71,0.00024931,2]
[354991571,1740858645014,-3488.0,0.00024931,2]
[354991572,1740858645025,-500.0,0.00024931,2]
[354991573,1740858645039,-500.0,0.00024931,2]
[354991574,1740858645052,-500.0,0.00024931,2]
[354991575,1740858645065,-9463.4,0.00024931,2]
[354991576,1740858645077,-1420.73,0.00024931,2]
[354991577,1740858645090,-500.0,0.00024931,2]
[354991578,1740858645103,-500.0,0.00024931,2]
[354991579,1740858645116,-602.93,0.00024931,2]
[354991580,1740858645129,-1402.25,0.00024931,2]
[354991581,1740858645142,-500.0,0.00024931,2]
[354991582,1740858645154,-500.0,0.00024931,2]
[354991583,1740858645166,-500.0,0.00024931,2]
[354991584,1740858645179,-5237.63,0.00024931,2]
[354991585,1740858645191,-899.3,0.00024931,2]
[354991586,1740858645203,-970.83,0.00024931,2]
[354991587,1740858645215,-2449.77,0.00024931,2]
[354991588,1740858645230,-500.0,0.00024931,2]
[354991589,1740858645243,-500.0,0.00024931,2]
[354991590,1740858645256,-4396.77,0.00024931,2]
[354991591,1740858645268,-3112.68,0.00024931,2]
[354991592,1740858645281,-523.00042399,0.00024931,2]
[354991593,1740858645291,-1000.0,0.00024931,5]
[354991594,1740858645304,-500.0,0.00024931,2]
[354991595,1740858645316,-500.0,0.00024931,2]
[354991596,1740858645328,-500.0,0.00024931,2]
[354991597,1740858645339,-4340.96,0.00024931,2]
[354991598,1740858645352,-500.0,0.00024931,2]
[354991599,1740858645364,-1088.39,0.00024931,2]
[354991600,1740858645376,-500.0,0.00024931,2]
[354991601,1740858645390,-2525.31,0.00024931,2]
[354991602,1740858645403,-7864.25,0.00024931,2]
[354991603,1740858645417,-500.0,0.00024931,2]
[354991604,1740858645431,-500.0,0.00024931,2]
[354991605,1740858645444,-574.42600429,0.00024931,2]
[354991606,1740858645458,-1037.02,0.00024931,2]
[354991607,1740858645472,-500.0,0.00024931,2]
[354991608,1740858645485,-500.0,0.00024931,2]
[354991609,1740858645497,-703.67,0.00024931,2]
[354991610,1740858645508,-500.0,0.00024931,2]
[354991611,1740858645518,-2714.35,0.00024931,2]
[354991612,1740858645530,-762.63,0.00024931,2]
[354991613,1740858645542,-500.0,0.00024931,2]
[354991614,1740858645555,-651.29,0.00024931,2]
[354991615,1740858645570,-1430.03,0.00024931,2]
[354991616,1740858645583,-500.0,0.00024931,2]
[354991617,1740858645596,-500.0,0.00024931,2]
[354991618,1740858645607,-732.12,0.00024931,2]
[354991619,1740858645619,-7347.84,0.00024931,2]
[354991620,1740858645631,-500.0,0.00024931,2]
[354991621,1740858645643,-528.54,0.00024931,2]
[354991622,1740858645655,-602.49,0.00024931,2]
[354991623,1740858645669,-1910.7,0.00024931,2]
[354991624,1740858645682,-651.81,0.00024931,2]
[354991625,1740858645695,-500.0,0.00024931,2]
[354991626,1740858645708,-145114.8,0.00024931,2]
[354991627,1740858645719,-533.55066739,0.00024931,2]
[354991628,1740858645730,-500.0,0.00024931,2]
[354991629,1740858645741,-2835.51,0.00024931,2]
[354991630,1740858645753,-1053.43,0.00024931,2]
[354991631,1740858645764,-500.0,0.00024931,2]
[354991632,1740858645776,-500.0,0.00024931,2]
[354991633,1740858645787,-500.0,0.00024931,2]
[354991634,1740858645799,-1191.33,0.00024931,2]
[354991635,1740858645810,-1513.15,0.00024931,2]
[354991636,1740858645822,-2839.02,0.00024931,2]
[354991637,1740858645833,-500.0,0.00024931,2]
[354991638,1740858645845,-500.0,0.00024931,2]
[354991639,1740858645857,-500.0,0.00024931,2]
[354991640,1740858645869,-1637.74,0.00024931,2]
[354991641,1740858645881,-500.0,0.00024931,2]
[354991642,1740858645893,-500.0,0.00024931,2]
[354991643,1740858645906,-1631.75,0.00024931,2]
[354991644,1740858645918,-614.9,0.00024931,2]
[354991645,1740858645929,-3677.1,0.00024931,2]
[354991646,1740858645942,-500.0,0.00024931,2]
[354991647,1740858645954,-500.0,0.00024931,2]
[354991648,1740858645966,-500.0,0.00024931,2]
[354991649,1740858645978,-3517.56,0.00024931,2]
[354991650,1740858645990,-1467.3,0.00024931,2]